bitfinex-derivatives/quotes_SOLF0:USTF0_20250109
["timestamp","ask_amount","ask_price","bid_price","bid_amount"]
[1736393601125,6.47201789,195.12,195.06,6.47201789]
[1736393601524,6.47201789,195.12,195.07,2.5642]
[1736393601826,6.47201789,195.08,195.05,12.52038237]
[1736393602025,6.47201789,195.06,195.05,12.52038237]
[1736393602224,6.47201789,195.06,195.04,142.26018687]
[1736393602526,6.47201789,195.06,195.04,116.93436008]
[1736393602719,2.5645,195.05,195.0,28.49798526]
[1736393602920,6.47201789,195.01,195.0,28.49798526]
[1736393603319,3.12,195.01,195.0,28.49798526]
[1736393603518,3.12,195.01,194.97,2.5656]
[1736393607829,5.6851,195.01,194.97,2.5656]
[1736393608531,3.12,195.01,194.97,2.5656]
[1736393609732,3.12,195.01,194.98,2.5654]
[1736393612339,2.5649,195.02,194.98,2.5654]
[1736393612534,3.08,195.01,194.98,2.5654]
[1736393614335,2.5649,195.03,194.99,2.5652]
[1736393614537,3.08,195.02,194.99,2.5652]
[1736393614735,3.08,195.02,194.95,4.6594]
[1736393614937,3.08,195.02,194.99,2.5653]
[1736393619543,3.08,195.02,195.0,2.5651]
[1736393619749,3.06,195.02,195.0,2.5651]
[1736393620743,3.06,195.02,195.01,2.565]
[1736393621344,10.10639442,195.11,195.04,2.5647]
[1736393621543,1.4976,195.13,195.01,3.06]
[1736393621744,2.5638,195.11,195.01,3.06]
[1736393621940,10.10639442,195.09,194.95,33.15738526]
[1736393622147,10.10639442,195.06,194.95,36.21738526]
[1736393622346,10.10639442,195.06,194.98,7.12449631]
[1736393623038,12.67079442,195.06,194.97,4.87435274]
[1736393623444,12.67079442,195.06,194.99,2.5653]
[1736393623638,12.67079442,195.06,194.96,7.12449631]
[1736393624347,2.5646,195.05,195.0,2.5651]
[1736393625447,6.46716922,195.04,195.0,2.5651]
[1736393627344,6.46716922,195.06,194.98,6.46716922]
[1736393627543,1.4976,195.13,195.02,6.46716922]
[1736393627544,6.46716922,195.08,195.02,6.46716922]
[1736393627950,6.46716922,195.08,195.04,2.5646]
[1736393628146,6.46716922,195.08,195.02,6.46716922]
[1736393628839,6.46716922,195.1,195.04,6.46716922]
[1736393629147,6.46716922,195.1,195.0,10.18449631]
[1736393629148,6.46716922,195.12,195.06,6.46716922]
[1736393630252,6.46716922,195.12,195.09,2.564]
[1736393630946,1.479,195.25,195.11,2.5637]
[1736393631152,6.46716922,195.15,195.11,2.5637]
[1736393632143,54.37235509,195.18,195.1,6.46716922]
[1736393632351,6.46716922,195.21,195.15,9.03036922]
[1736393633353,6.46716922,195.21,195.16,2.5631]
[1736393633654,6.46716922,195.22,195.16,2.5631]
[1736393634054,6.46716922,195.22,195.15,6.46716922]
[1736393634055,6.46716922,195.22,195.18,2.5628]
[1736393634251,13.80144318,195.27,195.19,6.46716922]
[1736393634556,6.46716922,195.25,195.21,2.5624]
[1736393636055,6.46716922,195.25,195.19,9.02976922]
[1736393636957,6.46716922,195.25,195.2,2.5625]
[1736393637456,6.46716922,195.25,195.19,6.46716922]
[1736393637857,6.46716922,195.27,195.21,6.46716922]
[1736393638157,6.46716922,195.27,195.19,6.46716922]
[1736393638356,2.5616,195.28,195.19,6.46716922]
[1736393638357,6.46716922,195.25,195.19,6.46716922]
[1736393639155,6.46716922,195.25,195.21,2.5624]
[1736393639661,6.46716922,195.27,195.19,6.46716922]
[1736393639954,6.46716922,195.27,195.15,60.05597053]
[1736393639955,6.46716922,195.27,195.21,6.46716922]
[1736393640455,6.46716922,195.27,195.24,2.562]
[1736393640846,3.06,195.31,195.23,6.46716922]
[1736393641057,6.46716922,195.29,195.25,2.5619]
[1736393641659,6.0896,195.33,195.25,2.5619]
[1736393641660,2.5609,195.33,195.28,2.5615]
[1736393641855,6.46716922,195.32,195.25,6.46716922]
[1736393642256,6.46716922,195.32,195.28,2.5615]
[1736393642957,3.06,195.35,195.21,4.6365]
[1736393642958,6.46716922,195.3,195.21,4.6365]
[1736393643161,6.46716922,195.28,195.22,6.46716922]
[1736393643459,12.08846922,195.3,195.24,6.46716922]
[1736393644460,12.08846922,195.3,195.26,2.5618]
[1736393644759,12.08846922,195.3,195.24,6.46716922]
[1736393645255,9.52716922,195.3,195.26,2.5618]
[1736393646061,12.08846922,195.3,195.25,2.5619]
[1736393646862,6.46716922,195.26,195.21,192.5261]
[1736393647464,9.02896922,195.26,195.21,195.0884]
[1736393647763,6.46716922,195.28,195.23,6.46716922]
[1736393647955,9.52716922,195.3,195.25,6.46716922]
[1736393648259,12.08846922,195.3,195.26,2.5617]
[1736393648465,9.52716922,195.3,195.23,6.46716922]
[1736393648759,2.5614,195.29,195.23,6.46716922]
[1736393648964,6.46716922,195.3,195.23,6.46716922]
[1736393649168,6.46716922,195.32,195.25,6.46716922]
[1736393649363,6.46716922,195.32,195.28,2.5614]
[1736393649569,6.46716922,195.32,195.27,6.46716922]
[1736393649963,6.46716922,195.32,195.27,2.5615]
[1736393650158,6.46716922,195.3,195.21,192.5261]
[1736393650359,6.46716922,195.28,195.24,2.562]
[1736393651164,3.08,195.31,195.22,2.5622]
[1736393651165,6.46716922,195.25,195.22,2.5622]
[1736393651465,6.46716922,195.25,195.21,192.5261]
[1736393651466,6.46716922,195.27,195.21,197.46716922]
[1736393651858,2.5614,195.29,195.21,197.46716922]
[1736393651859,9.02856922,195.29,195.25,2.5619]
[1736393652064,6.46716922,195.29,195.25,2.5619]
[1736393652268,12.10846922,195.31,195.26,2.5617]
[1736393654468,6.46716922,195.29,195.23,6.46716922]
[1736393654766,6.46716922,195.29,195.25,2.5619]
[1736393655169,12.10846922,195.31,195.26,2.5618]
[1736393655565,9.54716922,195.31,195.25,6.46716922]
[1736393655763,3.08,195.31,195.29,2.5613]
[1736393655968,2.9543,195.37,195.29,2.5613]
[1736393656170,10.96413933,195.34,195.27,6.46716922]
[1736393656474,4.49697011,195.34,195.31,2.5611]
[1736393657068,12.08766922,195.36,195.31,2.5611]
[1736393657375,12.08766922,195.36,195.29,6.46716922]
[1736393657670,6.46716922,195.34,195.3,2.5613]
[1736393658872,6.46716922,195.34,195.29,2.5614]
[1736393659067,6.46716922,195.3,195.25,28.19553724]
[1736393659368,6.46716922,195.32,195.25,28.19553724]
[1736393659573,6.46716922,195.32,195.26,6.46716922]
[1736393659975,6.46716922,195.32,195.27,2.5615]
[1736393660771,6.46716922,195.28,195.25,7.04888431]
[1736393660968,3.06,195.36,195.25,13.51605353]
[1736393661173,3.06,195.36,195.27,6.46716922]
[1736393661370,6.46716922,195.33,195.28,2.5614]
[1736393661575,6.46716922,195.33,195.27,6.46716922]
[1736393662380,6.46716922,195.33,195.27,13.51605353]
[1736393662975,6.46716922,195.33,195.28,5.33007703]
[1736393663187,6.46716922,195.33,195.29,2.5614]
[1736393664582,6.46716922,195.33,195.29,9.61028431]
[1736393665577,6.46716922,195.33,195.29,2.5614]
[1736393666382,6.46716922,195.33,195.3,5.34702803]
[1736393666883,6.46716922,195.33,195.31,5.34702803]
[1736393667085,2.5608,195.34,195.31,5.34702803]
[1736393667779,2.5608,195.34,195.31,28.19553724]
[1736393668581,2.5609,195.33,195.31,28.19553724]
[1736393669486,2.5608,195.34,195.31,28.19553724]
[1736393670084,2.5608,195.34,195.32,55.02658907]
[1736393671080,2.5608,195.34,195.32,28.19553724]
[1736393671785,2.5608,195.34,195.32,84.58661173]
[1736393674689,9.52716922,195.36,195.32,84.58661173]
[1736393674889,2.5609,195.33,195.32,84.58661173]
[1736393675888,2.5609,195.33,195.32,143.72057852]
[1736393676089,2.5606,195.35,195.32,143.72057852]
[1736393676591,9.50716922,195.37,195.32,143.72057852]
[1736393676789,2.5605,195.36,195.32,84.58661173]
[1736393677393,2.5605,195.36,195.33,6.46716922]
[1736393677592,2.5605,195.36,195.32,84.58661173]
[1736393677890,2.5606,195.35,195.32,84.58661173]
[1736393678590,2.5606,195.35,195.34,28.19553724]
[1736393679585,2.5606,195.35,195.34,55.0778906]
[1736393680492,2.5606,195.35,195.34,5.37647067]
[1736393682486,2.5607,195.34,195.33,7.04888431]
[1736393683391,2.561,195.32,195.31,28.19553724]
[1736393683997,2.5612,195.31,195.29,28.19553724]
[1736393684190,3.04,195.33,195.29,28.19553724]
[1736393684382,3.04,195.33,195.29,34.66270646]
[1736393684895,3.04,195.33,195.3,5.37614235]
[1736393685093,5.6009,195.33,195.3,5.37614235]
[1736393685592,3.04,195.33,195.31,5.37614235]
[1736393685891,2.5611,195.32,195.31,5.37614235]
[1736393686389,2.5611,195.32,195.29,13.51605353]
[1736393687190,2.5611,195.32,195.3,12.42538793]
[1736393687695,2.5611,195.32,195.31,5.37650362]
[1736393690494,5.601,195.33,195.31,5.37650362]
[1736393690894,3.04,195.37,195.31,11.84367284]
[1736393691193,2.5607,195.35,195.31,11.84367284]
[1736393691595,2.5607,195.35,195.32,12.42538793]
[1736393691794,2.5608,195.34,195.32,12.42538793]
[1736393692388,2.5608,195.34,195.31,34.66270646]
[1736393694093,2.5608,195.34,195.32,12.42626789]
[1736393694694,2.5608,195.34,195.32,7.04888431]
[1736393695495,2.5608,195.34,195.33,5.3765765]
[1736393697002,9.02796922,195.34,195.33,5.3765765]
[1736393697399,2.5609,195.33,195.32,7.04888431]
[1736393698500,6.46716922,195.34,195.29,7.04888431]
[1736393698696,2.5613,195.3,195.29,7.04888431]
[1736393698895,5.6013,195.3,195.29,7.04888431]
[1736393699094,12.06846922,195.3,195.29,7.04888431]
[1736393699294,2.5615,195.28,195.27,7.04888431]
[1736393700299,2.5615,195.28,195.27,5.37660025]
[1736393700897,9.50716922,195.3,195.25,28.19553724]
[1736393701100,2.5617,195.27,195.25,28.19553724]
[1736393701693,2.5617,195.27,195.25,7.04888431]
[1736393704103,2.5617,195.27,195.24,28.19553724]
[1736393705001,2.5617,195.27,195.25,5.37137936]
[1736393705706,2.5617,195.27,195.24,28.19553724]
[1736393705908,2.5619,195.25,195.24,28.19553724]
[1736393706102,5.6019,195.25,195.24,28.19553724]
[1736393706503,5.6019,195.25,195.24,12.41928803]
[1736393707305,2.5622,195.24,195.21,7.04888431]
[1736393710106,2.5622,195.24,195.2,27.61382215]
[1736393710107,3.065,195.36,195.22,6.46716922]
[1736393710305,6.46716922,195.33,195.26,6.46716922]
[1736393711612,2.5615,195.29,195.26,6.46716922]
[1736393711808,6.46716922,195.27,195.25,7.04888431]
[1736393712506,2.5619,195.25,195.24,7.04888431]
[1736393713312,2.5623,195.22,195.2,28.19553724]
[1736393714309,2.5623,195.22,195.2,7.04888431]
[1736393714811,5.602,195.25,195.21,6.46716922]
[1736393715204,3.04,195.29,195.23,6.46716922]
[1736393715717,6.46716922,195.31,195.25,6.46716922]
[1736393715906,6.46716922,195.33,195.27,6.46716922]
[1736393716211,3.04,195.32,195.29,6.46716922]
[1736393716713,5.601,195.32,195.29,6.46716922]
[1736393717015,3.04,195.32,195.29,6.46716922]
[1736393717715,2.5609,195.33,195.29,6.46716922]
[1736393717919,3.04,195.33,195.29,6.46716922]
[1736393718405,3.04,195.33,195.31,6.46716922]
[1736393718610,2.5607,195.35,195.31,6.46716922]
[1736393721012,5.6005,195.36,195.31,6.46716922]
[1736393722316,3.04,195.36,195.31,9.02816922]
[1736393722517,3.04,195.39,195.35,6.46716922]
[1736393723112,3.04,195.41,195.35,6.46716922]
[1736393723917,9.50716922,195.41,195.35,6.46716922]
[1736393724422,9.50716922,195.41,195.33,9.02806922]
[1736393724817,6.46716922,195.35,195.31,28.19553724]
[1736393725515,2.5608,195.34,195.31,28.19553724]
[1736393725717,6.46716922,195.35,195.29,6.46716922]
[1736393726218,9.02786922,195.35,195.29,9.02856922]
[1736393726520,6.46716922,195.35,195.29,9.02856922]
[1736393726818,6.46716922,195.35,195.29,6.46716922]
[1736393727518,2.5607,195.34,195.29,6.46716922]
[1736393732523,2.5607,195.34,195.29,13.51605353]
[1736393733121,2.5606,195.35,195.29,16.07735353]
[1736393733326,3.0231,195.42,195.33,6.46716922]
[1736393733526,3.95727557,195.41,195.33,6.46716922]
[1736393733826,6.46716922,195.38,195.33,6.46716922]
[1736393734327,2.5604,195.37,195.33,6.46716922]
[1736393734522,2.5604,195.37,195.31,9.02826922]
[1736393735222,2.5604,195.37,195.33,6.46716922]
[1736393736527,2.5602,195.38,195.33,6.46716922]
[1736393737629,1.492,195.44,195.33,6.46716922]
[1736393737838,6.46716922,195.4,195.33,6.46716922]
[1736393738426,6.46716922,195.36,195.31,7.04888431]
[1736393738628,6.46716922,195.34,195.3,28.19553724]
[1736393738828,9.50716922,195.34,195.3,28.19553724]
[1736393739235,2.5609,195.33,195.3,28.19553724]
[1736393739431,2.5609,195.33,195.28,6.46716922]
[1736393743140,9.50716922,195.34,195.28,6.46716922]
[1736393743336,2.5611,195.31,195.27,7.04888431]
[1736393743543,6.46716922,195.32,195.27,28.19553724]
[1736393744342,6.46716922,195.32,195.25,1.5212]
[1736393745245,6.46716922,195.3,195.24,7.04888431]
[1736393745446,6.46716922,195.28,195.24,7.04888431]
[1736393745646,9.50716922,195.28,195.23,28.19553724]
[1736393745945,2.5618,195.26,195.23,28.19553724]
[1736393746143,6.46716922,195.26,195.23,28.19553724]
[1736393746450,9.02916922,195.24,195.23,28.19553724]
[1736393746835,6.46716922,195.24,195.22,28.19553724]
[1736393747141,5.6021,195.23,195.22,28.19553724]
[1736393748041,5.6021,195.23,195.18,28.19553724]
[1736393748348,10.08845055,195.27,195.18,28.19553724]
[1736393748543,3.04,195.26,195.18,38.28398779]
[1736393748737,3.04,195.26,195.18,10.08845055]
[1736393749444,3.04,195.26,195.19,54.9806054]
[1736393750045,5.6018,195.26,195.2,12.40589794]
[1736393750950,3.04,195.26,195.2,2.5625]
[1736393751250,3.04,195.25,195.2,2.5625]
[1736393751839,3.04,195.25,195.2,9.61138431]
[1736393752552,3.04,195.25,195.21,5.35507433]
[1736393753750,3.04,195.25,195.2,9.61138431]
[1736393754748,2.5618,195.26,195.2,9.61138431]
[1736393755052,3.04,195.27,195.22,2.5622]
[1736393756051,5.6016,195.27,195.23,5.35187678]
[1736393756952,5.6016,195.27,195.22,2.5622]
[1736393757555,3.04,195.27,195.22,2.5622]
[1736393757854,3.04,195.27,195.22,30.75773724]
[1736393758753,3.04,195.27,195.23,5.35168075]
[1736393758949,2.5615,195.28,195.23,5.35168075]
[1736393759659,2.5615,195.28,195.24,5.35168075]
[1736393759953,3.04,195.3,195.24,15.4401313]
[1736393760150,3.04,195.31,195.24,15.4401313]
[1736393760345,3.04,195.31,195.26,7.04888431]
[1736393761249,3.04,195.31,195.27,5.35168075]
[1736393762052,3.04,195.31,195.26,28.19553724]
[1736393762955,10.08845055,195.36,195.26,28.19553724]
[1736393763156,3.04,195.35,195.27,10.08845055]
[1736393763356,3.04,195.35,195.27,11.59265055]
[1736393763657,3.04,195.35,195.27,23.99401317]
[1736393763856,3.04,195.35,195.3,2.5612]
[1736393764353,3.04,195.36,195.3,2.5612]
[1736393764549,3.04,195.35,195.3,2.5612]
[1736393765056,3.04,195.35,195.3,9.61008431]
[1736393766059,5.6006,195.35,195.3,2.5612]
[1736393768759,5.6006,195.35,195.29,30.75683724]
[1736393769059,5.6006,195.35,195.29,9.61018431]
[1736393769258,5.6006,195.35,195.3,6.44686866]
[1736393769658,3.04,195.35,195.32,6.44686866]
[1736393770160,12.04706866,195.38,195.32,9.00766866]
[1736393771059,9.00706866,195.38,195.32,9.00766866]
[1736393771255,12.04706866,195.38,195.32,9.00766866]
[1736393773864,12.04706866,195.38,195.32,16.05655297]
[1736393774263,6.44686866,195.36,195.32,7.04888431]
[1736393774864,6.44686866,195.36,195.3,28.19553724]
[1736393775760,9.00746866,195.36,195.3,9.61008431]
[1736393776063,6.44686866,195.36,195.3,9.61008431]
[1736393777166,2.5606,195.35,195.3,2.5612]
[1736393777663,2.561,195.32,195.29,7.04888431]
[1736393777858,9.00786866,195.32,195.29,7.04888431]
[1736393778059,6.44686866,195.32,195.29,7.04888431]
[1736393778265,9.00806866,195.3,195.29,7.04888431]
[1736393778658,6.44686866,195.3,195.26,198.04888431]
[1736393778864,6.44686866,195.3,195.26,7.04888431]
[1736393779065,6.44686866,195.32,195.26,13.49575297]
[1736393779365,3.04,195.33,195.28,6.44686866]
[1736393779561,3.04,195.37,195.32,2.561]
[1736393779765,3.04,195.37,195.32,9.00786866]
[1736393779959,3.04,195.38,195.32,9.00786866]
[1736393780160,5.6002,195.38,195.32,9.00786866]
[1736393781467,6.44686866,195.37,195.32,6.44686866]
[1736393781768,9.00726866,195.37,195.31,9.60988431]
[1736393782463,2.5605,195.36,195.31,9.60988431]
[1736393782867,2.5605,195.36,195.31,2.561]
[1736393784365,2.5605,195.36,195.3,16.61335297]
[1736393784571,2.5606,195.35,195.3,19.17455297]
[1736393786074,2.5606,195.35,195.31,5.35182341]
[1736393786372,2.5608,195.34,195.31,5.35182341]
[1736393786674,6.44686866,195.35,195.3,28.19553724]
[1736393786971,6.44686866,195.33,195.3,28.19553724]
[1736393787173,9.48686866,195.33,195.3,28.19553724]
[1736393787470,6.44686866,195.31,195.28,28.19553724]
[1736393787669,9.00826866,195.29,195.28,28.19553724]
[1736393788768,6.44686866,195.29,195.24,7.04888431]
[1736393788966,6.44686866,195.25,195.24,7.04888431]
[1736393789672,6.44686866,195.25,195.21,7.04888431]
[1736393789868,2.562,195.24,195.21,7.04888431]
[1736393790271,6.44686866,195.23,195.21,7.04888431]
[1736393790475,6.44686866,195.23,195.2,7.04888431]
[1736393790476,12.04906866,195.23,195.2,7.04888431]
[1736393791374,2.5623,195.22,195.18,28.19553724]
[1736393791868,3.04,195.23,195.18,28.19553724]
[1736393792075,3.04,195.23,195.16,30.75853724]
[1736393792669,3.04,195.23,195.18,10.08810607]
[1736393792868,3.04,195.27,195.18,10.08810607]
[1736393793172,5.6017,195.27,195.2,2.5625]
[1736393794276,3.04,195.27,195.19,7.04888431]
[1736393794479,2.5619,195.26,195.19,9.61148431]
[1736393794876,3.04,195.27,195.21,2.5624]
[1736393795876,5.6017,195.27,195.21,2.5624]
[1736393796272,3.04,195.27,195.19,28.19553724]
[1736393796469,2.5618,195.26,195.2,2.5625]
[1736393796675,3.04,195.27,195.2,2.5625]
[1736393796976,3.04,195.27,195.2,12.3956805]
[1736393797779,3.04,195.27,195.19,28.19553724]
[1736393798079,2.5621,195.24,195.19,28.19553724]
[1736393798975,2.5621,195.24,195.2,5.34460006]
[1736393799275,2.5623,195.22,195.2,5.34460006]
[1736393799771,2.5623,195.22,195.19,28.19553724]
[1736393800578,3.04,195.24,195.18,10.08810607]
[1736393800579,2.5624,195.21,195.18,28.19553724]
[1736393801479,2.5624,195.21,195.17,7.04888431]
[1736393802083,2.5624,195.21,195.17,2.5629]
[1736393802976,2.5623,195.22,195.17,2.5629]
[1736393803579,3.04,195.24,195.18,2.5628]
[1736393803775,2.5622,195.23,195.18,2.5628]
[1736393804480,3.04,195.24,195.16,28.19553724]
[1736393804676,10.08810607,195.22,195.16,28.19553724]
[1736393805176,10.08810607,195.22,195.14,7.04888431]
[1736393806180,2.5628,195.19,195.13,2.5633]
[1736393806382,3.04,195.18,195.12,28.19553724]
[1736393807386,2.5634,195.14,195.07,35.36093724]
[1736393807587,3.04,195.18,195.07,32.79673724]
[1736393807982,3.04,195.18,195.07,4.6012]
[1736393809487,3.04,195.18,195.07,7.1654]
[1736393809990,2.5634,195.14,195.08,2.5641]
[1736393810286,3.04,195.13,195.08,2.5641]
[1736393811189,3.04,195.13,195.07,4.6012]
[1736393811490,3.04,195.13,195.09,2.5639]
[1736393811887,3.04,195.13,195.07,2.5641]
[1736393812492,5.6036,195.13,195.07,2.5641]
[1736393812697,3.04,195.13,195.07,2.5641]
[1736393813391,2.5636,195.12,195.07,2.5641]
[1736393814192,2.5637,195.11,195.07,2.5641]
[1736393817485,5.6036,195.13,195.06,7.04888431]
[1736393817688,3.04,195.19,195.07,10.08810607]
[1736393817891,3.04,195.19,195.07,64.93431804]
[1736393818292,3.04,195.19,195.08,1.4504]
[1736393818591,2.5632,195.16,195.08,1.4504]
[1736393818800,2.5632,195.16,195.11,2.5637]
[1736393819599,3.04,195.2,195.13,2.5634]
[1736393820294,2.5627,195.19,195.13,2.5634]
[1736393821193,3.04,195.22,195.12,7.04888431]
[1736393821399,1.5734,195.24,195.13,10.08810607]
[1736393821596,3.04,195.25,195.13,10.08810607]
[1736393822199,3.04,195.25,195.15,7.04888431]
[1736393823093,2.5622,195.23,195.17,30.75833724]
[1736393824099,2.5622,195.23,195.18,12.39145882]
[1736393824299,10.08810607,195.24,195.18,12.39145882]
[1736393824501,10.08810607,195.24,195.18,7.04888431]
[1736393825001,2.5623,195.22,195.18,7.04888431]
[1736393825196,11.59870607,195.27,195.18,7.04888431]
[1736393825402,3.04,195.26,195.17,28.19553724]
[1736393826196,2.5619,195.25,195.2,2.5625]
[1736393826408,2.5619,195.25,195.21,7.04888431]
[1736393827100,2.5619,195.25,195.22,5.34709638]
[1736393828201,2.5619,195.25,195.21,7.04888431]
[1736393828597,13.12810607,195.27,195.21,7.04888431]
[1736393828904,2.562,195.24,195.21,7.04888431]
[1736393829109,13.12810607,195.27,195.21,7.04888431]
[1736393829603,13.12810607,195.27,195.19,7.04888431]
[1736393830298,10.08810607,195.24,195.18,28.19553724]
[1736393831205,2.5625,195.21,195.16,28.19553724]
[1736393831397,3.04,195.2,195.16,28.19553724]
[1736393831902,3.04,195.2,195.17,5.34828771]
[1736393832106,5.6025,195.2,195.17,5.34828771]
[1736393832408,10.08810607,195.18,195.16,28.19553724]
[1736393832601,2.5629,195.17,195.16,28.19553724]
[1736393832796,10.08810607,195.18,195.14,7.04888431]
[1736393833508,2.5633,195.14,195.09,28.19553724]
[1736393833700,3.04,195.13,195.09,28.19553724]
[1736393834205,3.04,195.13,195.1,12.37467228]
[1736393835207,3.04,195.13,195.11,5.32578797]
[1736393836106,3.04,195.13,195.11,7.04888431]
[1736393837016,3.04,195.13,195.11,9.61258431]
[1736393837204,3.04,195.13,195.11,7.04888431]
[1736393837909,3.04,195.13,195.11,9.61258431]
[1736393838203,10.08810607,195.12,195.09,31.67437449]
[1736393838406,10.08810607,195.12,195.08,118.48019995]
[1736393838605,12.65210607,195.09,195.08,118.48019995]
[1736393839403,12.65210607,195.09,194.98,195.35985492]
[1736393839404,3.04,195.09,194.98,195.35985492]
[1736393839600,3.04,195.09,195.01,10.08810607]
[1736393839999,79.98,195.15,194.98,42.61558822]
[1736393840000,3.04,195.11,194.98,42.61558822]
[1736393840206,3.04,195.11,195.02,10.08810607]
[1736393841210,3.04,195.11,195.05,2.5645]
[1736393842305,5.6038,195.11,195.03,2.5647]
[1736393842609,3.04,195.11,195.03,2.5647]
[1736393842905,3.04,195.11,194.99,10.08810607]
[1736393843112,3.04,195.11,195.07,2.5642]
[1736393843706,3.04,195.11,195.02,10.08810607]
[1736393843707,3.04,195.11,195.08,2.5641]
[1736393844010,3.04,195.13,195.08,2.5641]
[1736393844411,3.04,195.13,195.11,2.5637]
[1736393844905,3.04,195.13,195.09,2.5639]
[1736393845113,3.04,195.13,195.06,4.517]
[1736393845710,3.04,195.13,195.06,7.0812]
[1736393846811,5.6035,195.13,195.06,4.517]
[1736393847006,5.6035,195.13,195.07,2.5642]
[1736393847314,3.04,195.13,195.07,2.5642]
[1736393848212,3.04,195.13,195.08,2.5641]
[1736393849813,5.6035,195.13,195.06,7.0813]
[1736393850306,5.6035,195.13,195.07,2.5642]
[1736393855918,2.5635,195.13,195.07,2.5642]
[1736393856123,5.6035,195.13,195.07,2.5642]
[1736393859120,3.04,195.13,195.06,4.517]
[1736393860023,3.04,195.13,195.08,2.5641]
[1736393861016,3.04,195.13,195.06,4.517]
[1736393861321,3.04,195.13,195.09,2.5639]
[1736393864522,2.5631,195.16,195.07,10.08810607]
[1736393864727,10.08810607,195.2,195.07,10.08810607]
[1736393864928,3.04,195.19,195.07,10.08810607]
[1736393865130,2.5629,195.17,195.12,2.5635]
[1736393865429,3.04,195.19,195.12,2.5635]
[1736393866330,2.5629,195.17,195.12,2.5635]
[1736393869334,9.02189213,195.17,195.12,2.5635]
[1736393873033,5.6027,195.19,195.14,2.5632]
[1736393873332,9.49899213,195.2,195.13,6.45899213]
[1736393873630,9.49899213,195.2,195.15,6.45899213]
[1736393873826,9.49899213,195.2,195.16,2.563]
[1736393874024,6.45899213,195.2,195.08,21.38895584]
[1736393874229,6.45899213,195.2,195.14,6.45899213]
[1736393874431,7.6796,195.41,195.18,6.45899213]
[1736393874624,6.45899213,195.25,195.18,6.45899213]
[1736393875028,2.5619,195.25,195.2,2.5625]
[1736393875227,6.45899213,195.24,195.2,2.5625]
[1736393875630,6.45899213,195.22,195.18,2.5627]
[1736393875832,6.45899213,195.2,195.14,6.45899213]
[1736393876031,6.45899213,195.2,195.14,47.45902698]
[1736393876336,6.45899213,195.2,195.16,2.5629]
[1736393876929,6.45899213,195.18,195.13,4.6022]
[1736393877133,6.45899213,195.18,195.15,2.5632]
[1736393879242,6.45899213,195.16,195.11,41.00441405]
[1736393879430,3.04,195.15,195.11,41.00441405]
[1736393880041,10.09605739,195.16,195.11,41.00441405]
[1736393880343,3.04,195.15,195.1,191.0]
[1736393880541,5.6032,195.15,195.1,191.0]
[1736393880733,3.04,195.15,195.1,191.0]
[1736393882142,3.04,195.15,195.1,193.5637]
[1736393884842,3.04,195.15,195.1,2.5637]
[1736393885443,3.04,195.15,195.11,2.5637]
[1736393887239,2.5625,195.21,195.15,2.5631]
[1736393887444,3.04,195.23,195.15,2.5631]
[1736393888648,2.5627,195.19,195.14,2.5633]
[1736393890041,3.04,195.23,195.12,13.13605739]
[1736393890249,2.5625,195.21,195.15,2.5632]
[1736393890753,2.5622,195.23,195.17,2.5629]
[1736393891041,5.6022,195.23,195.17,2.5629]
[1736393891250,2.5622,195.23,195.17,2.5629]
[1736393891642,3.04,195.24,195.19,2.5626]
[1736393892250,2.562,195.24,195.18,2.5628]
[1736393894649,2.5621,195.23,195.17,2.5629]
[1736393895052,2.5621,195.23,195.14,22.92975584]
[1736393895253,2.5621,195.23,195.18,2.5627]
[1736393899659,83.02,195.26,195.18,2.5627]
[1736393899858,2.562,195.24,195.18,2.5627]
[1736393900259,10.09605739,195.23,195.18,2.5627]
[1736393900958,83.02,195.26,195.18,2.5627]
[1736393901158,2.562,195.24,195.19,2.5626]
[1736393903256,6.45534735,195.23,195.19,2.5626]
[1736393904556,2.5619,195.26,195.2,2.5625]
[1736393904759,6.45534735,195.25,195.2,2.5625]
[1736393905358,2.5619,195.26,195.2,9.01784735]
[1736393905758,6.45534735,195.25,195.2,2.5625]